bitfinex-derivatives/quotes_SOLF0:USTF0_20250124
["timestamp","ask_amount","ask_price","bid_price","bid_amount"]
[1737750053818,0.02718245,260.55,260.39,9.18830455]
[1737750054218,9.18830455,260.58,260.39,9.18830455]
[1737750054416,0.02789003,260.5,260.39,9.18830455]
[1737750055318,9.21619458,260.5,260.31,9.18830455]
[1737750055516,1.3329,260.49,260.31,9.18830455]
[1737750055712,3.8385,260.43,260.31,9.18830455]
[1737750055913,3.8676745,260.43,260.31,9.18830455]
[1737750056120,0.0291745,260.43,260.31,9.18830455]
[1737750056918,0.0291745,260.43,260.33,3.8398]
[1737750057122,0.0291745,260.43,260.31,9.18830455]
[1737750057514,0.0291745,260.43,260.32,3.8399]
[1737750058113,0.0291745,260.43,260.31,9.18830455]
[1737750059727,0.0291745,260.43,260.35,9.18830455]
[1737750060025,1.3329,260.49,260.35,9.18830455]
[1737750060219,0.02729359,260.42,260.37,3.8392]
[1737750060420,0.02729359,260.42,260.35,9.18830455]
[1737750060724,0.02729359,260.42,260.39,3.8389]
[1737750060920,0.02729359,260.42,260.31,9.18830455]
[1737750061125,0.76801966,260.41,260.28,9.18830455]
[1737750061326,0.76801966,260.41,260.29,4.0109]
[1737750061526,0.02681325,260.39,260.29,4.0109]
[1737750061825,0.02681325,260.39,260.37,3.8392]
[1737750062121,5.62357361,260.52,260.32,9.18830455]
[1737750062425,9.18830455,260.49,260.29,4.0109]
[1737750063122,0.02602351,260.42,260.36,0.02759102]
[1737750063419,0.02602351,260.42,260.29,4.0109]
[1737750063626,0.02602351,260.42,260.36,3.86391951]
[1737750063828,0.02602351,260.42,260.36,0.02451951]
[1737750064925,0.02602351,260.42,260.4,3.8387]
[1737750065224,0.02602351,260.42,260.36,0.02451951]
[1737750065624,0.02602351,260.42,260.36,9.21282406]
[1737750067327,0.02602351,260.42,260.4,3.8388]
[1737750067528,0.02602351,260.42,260.36,0.02451951]
[1737750067733,0.02602351,260.42,260.38,3.8391]
[1737750067925,0.02602351,260.42,260.36,0.02451951]
[1737750068327,0.02602351,260.42,260.4,3.8388]
[1737750068535,0.02602351,260.42,260.36,0.02451951]
[1737750069032,0.02602351,260.42,260.4,3.8388]
[1737750069827,0.02602351,260.42,260.36,0.02451951]
[1737750070732,0.02602351,260.42,260.39,3.839]
[1737750071632,0.02602351,260.42,260.36,0.02451951]
[1737750072431,0.02602351,260.42,260.39,3.839]
[1737750072632,0.02602351,260.42,260.36,0.02451951]
[1737750072930,3.8392,260.38,260.36,0.02451951]
[1737750073429,3.839,260.39,260.36,0.02451951]
[1737750073629,0.02602351,260.42,260.36,0.02451951]
[1737750074431,9.21432806,260.42,260.36,0.02451951]
[1737750074632,9.21432806,260.42,260.26,4.58085047]
[1737750074837,9.18830455,260.42,260.26,4.58085047]
[1737750075435,9.18830455,260.42,260.26,13.76915502]
[1737750075632,3.839,260.4,260.34,3.8397]
[1737750075839,0.02506373,260.37,260.3,9.18830455]
[1737750076435,0.02506373,260.37,260.32,3.84]
[1737750076738,0.02506373,260.37,260.3,9.18830455]
[1737750077139,0.02506373,260.37,260.36,3.8394]
[1737750077340,9.18830455,260.5,260.34,9.18830455]
[1737750077937,2.68,260.51,260.34,9.18830455]
[1737750078436,0.02666522,260.45,260.4,0.02837815]
[1737750079238,0.02666522,260.45,260.43,3.8384]
[1737750079434,1.2918,260.57,260.42,9.18830455]
[1737750079740,1.2918,260.57,260.47,3.8377]
[1737750079938,1.2918,260.57,260.43,1.2761]
[1737750080242,1.2918,260.57,260.43,5.1144]
[1737750080541,3.8373,260.51,260.47,0.0259362]
[1737750080940,0.02722768,260.53,260.33,9.18830455]
[1737750081144,9.18830455,260.54,260.34,1.2901]
[1737750081545,3.8377,260.48,260.4,3.8389]
[1737750081742,3.8377,260.48,260.34,1.2901]
[1737750082141,0.02473771,260.44,260.38,0.02516205]
[1737750082445,3.86303771,260.44,260.38,0.02516205]
[1737750083447,3.86303771,260.44,260.38,3.86426205]
[1737750083746,0.02473771,260.44,260.38,0.02516205]
[1737750084346,0.02473771,260.44,260.38,1.24086205]
[1737750084545,0.02473771,260.44,260.38,2.53576205]
[1737750084948,3.8368,260.54,260.47,3.8377]
[1737750085649,3.8366,260.56,260.41,9.18830455]
[1737750085850,9.18830455,260.62,260.45,9.18830455]
[1737750086045,0.02928957,260.51,260.46,0.02818245]
[1737750086648,0.02928957,260.51,260.5,3.8373]
[1737750086951,9.18830455,260.58,260.46,0.02818245]
[1737750087954,0.02849019,260.55,260.46,0.02818245]
[1737750088758,3.837,260.53,260.46,3.86608245]
[1737750089259,3.837,260.53,260.46,0.02818245]
[1737750089758,0.02849019,260.55,260.46,0.02818245]
[1737750089958,0.02849019,260.55,260.49,3.8375]
[1737750090259,0.02849019,260.55,260.46,0.02818245]
[1737750090665,0.02849019,260.55,260.48,9.18830455]
[1737750091365,0.02849019,260.55,260.48,10.52750455]
[1737750091963,0.02849019,260.55,260.51,3.8371]
[1737750092765,0.02849019,260.55,260.53,3.8369]
[1737750092966,0.02849019,260.55,260.48,10.52750455]
[1737750093162,0.02849019,260.55,260.51,0.02910726]
[1737750093573,0.02849019,260.55,260.54,3.8368]
[1737750094064,9.18830455,260.71,260.57,3.8362]
[1737750094264,9.18830455,260.71,260.56,9.18830455]
[1737750094761,9.18830455,260.71,260.61,3.8356]
[1737750095266,0.02914668,260.69,260.63,0.02933462]
[1737750095466,3.8347,260.68,260.63,0.02933462]
[1737750096167,0.02914668,260.69,260.63,0.02933462]
[1737750096767,3.8348,260.68,260.63,0.02933462]
[1737750096964,0.02914668,260.69,260.63,0.02933462]
[1737750098664,3.8348,260.68,260.63,0.02933462]
[1737750098865,0.02914668,260.69,260.63,0.02933462]
[1737750099271,3.8353,260.64,260.63,0.02933462]
[1737750101764,3.8365,260.56,260.52,3.837]
[1737750103071,0.0275588,260.57,260.51,0.02539687]
[1737750103275,9.18830455,260.67,260.48,10.52750455]
[1737750103464,0.02915418,260.57,260.51,0.02724694]
[1737750103665,0.02915418,260.57,260.48,10.52750455]
[1737750103868,0.02915418,260.57,260.5,0.02562687]
[1737750104068,0.02915418,260.57,260.53,3.8368]
[1737750104368,0.02915418,260.57,260.5,0.02562687]
[1737750105173,3.8372,260.51,260.5,0.02562687]
[1737750110377,0.02915418,260.57,260.5,0.02562687]
[1737750110675,0.02915418,260.57,260.54,3.8367]
[1737750110871,0.02915418,260.57,260.5,0.02562687]
[1737750111877,3.8372,260.51,260.5,0.02562687]
[1737750115181,3.8382,260.45,260.4,9.18830455]
[1737750115777,1.3138,260.58,260.41,3.8386]
[1737750115976,3.838,260.46,260.4,9.18830455]
[1737750116177,9.18830455,260.55,260.4,13.02710455]
[1737750116473,0.02515068,260.46,260.4,0.02932963]
[1737750116880,3.8387,260.41,260.4,0.02932963]
[1737750117683,3.8386,260.42,260.4,0.02932963]
[1737750118080,0.02515068,260.46,260.4,0.02932963]
[1737750118274,3.8387,260.41,260.4,0.02932963]
[1737750118582,3.8387,260.41,260.2,7.6834]
[1737750118583,9.18830455,260.44,260.23,9.18830455]
[1737750118776,3.8403,260.3,260.23,9.18830455]
[1737750119081,9.18830455,260.44,260.23,9.18830455]
[1737750119280,172.60823233,260.45,260.18,2.6095]
[1737750119281,3.841,260.26,260.19,9.18830455]
[1737750119486,2.76,260.39,260.19,9.18830455]
[1737750119783,0.02830309,260.25,260.2,0.02514032]
[1737750120083,0.02720471,260.25,260.2,0.02907875]
[1737750121278,0.02720471,260.25,260.01,9.18830455]
[1737750121279,11.94830455,260.24,260.01,9.18830455]
[1737750121480,9.18830455,260.19,260.0,72.6505872]
[1737750121681,9.18830455,260.14,260.0,72.6505872]
[1737750122183,3.8437,260.08,260.0,72.6505872]
[1737750122384,9.18830455,260.14,260.0,72.6505872]
[1737750122684,0.02791061,260.1,260.0,72.6505872]
[1737750122884,0.02791061,260.1,260.01,3.8445]
[1737750123076,0.02791061,260.1,260.0,72.6505872]
[1737750123279,0.02791061,260.1,259.93,158.89916792]
[1737750123476,13.03390455,259.94,259.93,2.491e-05]
[1737750123675,14.78498764,260.03,259.93,2.491e-05]
[1737750124185,14.78498764,260.13,259.93,2.491e-05]
[1737750124385,3.1,260.2,259.93,2.491e-05]
[1737750124680,14.78498764,260.19,259.93,2.491e-05]
[1737750124884,14.78498764,260.26,260.0,14.78498764]
[1737750125079,14.78498764,260.26,260.01,3.8652]
[1737750125383,0.02929685,260.16,260.1,0.02709512]
[1737750125575,17.90498764,260.31,260.05,14.78498764]
[1737750125780,17.90498764,260.31,260.16,3.8424]
[1737750125982,0.9606081,260.3,260.17,1.2649]
[1737750126283,0.9606081,260.29,260.17,1.2649]
[1737750126489,0.9606081,260.28,260.21,3.8417]
[1737750126680,3.12,260.31,260.21,3.8417]
[1737750126883,0.02678009,260.26,260.2,0.02496007]
[1737750127288,0.96053791,260.25,260.2,0.02496007]
[1737750127484,0.96063808,260.24,260.2,0.02496007]
[1737750127683,0.02678009,260.26,260.2,0.02496007]
[1737750129083,41.81415942,260.22,260.19,3.8418]
[1737750129286,41.81415942,260.22,260.1,8.38544951]
[1737750129681,41.81415942,260.22,260.14,3.8426]
[1737750129987,41.81415942,260.21,260.1,8.38544951]
[1737750130187,41.81415942,260.21,260.18,3.8421]
[1737750130385,0.029363,260.18,260.13,0.02848186]
[1737750130589,5.18135655,260.19,260.13,0.02848186]
[1737750130989,5.18135655,260.19,260.17,3.8422]
[1737750131688,5.18135655,260.19,260.1,4.68053886]
[1737750132090,5.18135655,260.19,260.17,3.8422]
[1737750132389,5.18135655,260.23,260.1,4.68053886]
[1737750132591,5.18135655,260.23,260.2,3.8418]
[1737750132889,5.18135655,260.23,260.14,0.02641899]
[1737750133292,5.18135655,260.23,260.15,14.78498764]
[1737750133483,5.18135655,260.22,260.15,14.78498764]
[1737750133988,3.15795655,260.22,260.15,14.78498764]
[1737750134389,3.15795655,260.22,260.21,3.8417]
[1737750134584,3.15795655,260.22,260.14,0.02641899]
[1737750135084,3.15795655,260.22,260.2,3.8417]
[1737750135490,3.15795655,260.22,260.14,0.02641899]
[1737750135684,15.54406965,260.19,260.14,0.02641899]
[1737750137389,100.03777592,260.18,260.14,0.02641899]
[1737750137692,100.03777592,260.18,260.12,3.8429]
[1737750137893,100.03777592,260.18,260.05,14.78498764]
[1737750138286,100.03777592,260.18,260.16,3.8423]
[1737750138695,100.03777592,260.18,260.16,3.7936134]
[1737750139194,100.03777592,260.18,260.1,14.78498764]
[1737750139594,0.02592077,260.2,260.1,14.78498764]
[1737750140295,0.02592077,260.2,260.14,3.8426]
[1737750141299,15.56560072,260.15,260.14,3.8426]
[1737750142498,16.52679896,260.15,259.94,14.78498764]
[1737750142699,0.96119824,260.14,259.95,2.5195]
[1737750142899,14.78498764,260.12,259.95,2.5195]
[1737750143099,3.844,260.06,259.95,2.5195]
[1737750143300,0.029038,260.07,259.95,2.5195]
[1737750143596,15.56560072,260.02,259.84,14.78498764]
[1737750143796,0.96156033,260.01,259.84,14.78498764]
[1737750144003,0.02565661,259.96,259.75,3.8085]
[1737750144297,3.8465,259.89,259.75,3.8085]
[1737750144498,0.02686237,259.88,259.75,3.8085]
[1737750145400,0.96203375,259.87,259.66,14.78498764]
[1737750145591,3.2,259.89,259.71,14.78498764]
[1737750145792,0.02706364,259.79,259.71,14.78498764]
[1737750146897,0.02706364,259.79,259.7,1.2366]
[1737750148096,15.56560072,259.86,259.78,14.78498764]
[1737750148097,13.53960072,259.86,259.78,14.78498764]
[1737750148301,1.38540072,259.86,259.79,1.2768]
[1737750148502,16.22075419,259.87,259.79,1.2768]
[1737750148697,15.53476528,259.9,259.79,1.2768]
[1737750148894,12.77836528,259.9,259.83,14.78498764]
[1737750149197,0.02743775,259.89,259.84,0.0269461]
[1737750149403,0.02743775,259.89,259.88,3.8465]
[1737750149701,41.50826859,259.92,259.88,14.78498764]
[1737750149902,62.72123914,259.96,259.88,14.78498764]
[1737750150098,62.72123914,259.96,259.93,14.78498764]
[1737750150903,49.42901341,259.97,259.93,14.78498764]
[1737750151201,0.02943098,259.97,259.93,1.90548998]
[1737750151403,0.02943098,259.97,259.95,3.8454]
[1737750151804,3.098e-05,259.97,259.95,3.8454]
[1737750152900,3.098e-05,259.97,259.92,0.0281788]
[1737750154501,3.098e-05,259.97,259.48,14.78498764]
[1737750154709,14.78498764,259.66,259.35,14.78498764]
[1737750154899,0.96295351,259.65,259.41,14.78498764]
[1737750155103,0.96295351,259.64,259.41,14.78498764]
[1737750155407,0.96295351,259.63,259.35,14.78498764]
[1737750155600,3.8507,259.61,259.45,3.8528]
[1737750155798,0.02469664,259.52,259.46,0.0282665]
[1737750159204,0.02469664,259.52,259.46,24.12823783]
[1737750159603,0.02469664,259.52,259.47,1.2513]
[1737750160914,0.02469664,259.52,259.49,3.8522]
[1737750161906,0.02469664,259.52,259.5,3.8521]
[1737750163408,1.3137,259.68,259.51,24.09997133]
[1737750163710,1.3137,259.68,259.4,72.06]
[1737750163711,1.3137,259.68,259.46,24.09997133]
[1737750163912,0.96292889,259.67,259.46,24.09997133]
[1737750164117,0.96292889,259.66,259.52,3.8518]
[1737750164311,0.96292889,259.65,259.52,3.8518]
[1737750164508,0.02594113,259.61,259.56,0.02480989]
[1737750165807,0.02594113,259.61,259.56,3.87600989]
[1737750166011,0.02594113,259.61,259.56,0.02480989]
[1737750166215,0.02594113,259.61,259.4,24.09997133]
[1737750166415,24.09997133,259.6,259.4,24.09997133]
[1737750166814,24.09997133,259.6,259.46,3.8528]
[1737750167114,3.8511,259.58,259.4,24.09997133]
[1737750167310,24.09997133,259.6,259.51,3.8519]
[1737750167516,1.289,259.64,259.45,24.09997133]
[1737750167816,1.289,259.64,259.53,0.02699255]
[1737750168015,0.02658526,259.57,259.53,0.02699255]
[1737750168813,0.02658526,259.57,259.55,3.8514]
[1737750169012,0.02658526,259.57,259.53,0.02699255]
[1737750169518,0.02658526,259.57,259.55,3.8514]
[1737750170112,0.02658526,259.57,259.55,27.95137133]
[1737750170516,3.44,259.85,259.55,24.09997133]
[1737750170720,0.9626317,259.77,259.62,24.09997133]
[1737750170910,1.2752,259.79,259.62,24.09997133]
[1737750171115,0.96258645,259.77,259.68,3.8493]
[1737750171318,1.2752,259.79,259.62,24.09997133]
[1737750171513,5.1232,259.79,259.72,3.8489]
[1737750171720,0.02848627,259.73,259.67,24.09997133]
[1737750171919,1.2752,259.79,259.72,0.02482036]
[1737750172110,0.02505226,259.73,259.72,0.02482036]
[1737750172920,0.02505226,259.73,259.72,24.12479169]
[1737750173227,0.02505226,259.73,259.72,11.23186939]
[1737750173617,3.8472,259.84,259.72,11.23186939]
[1737750173816,1.2444,259.9,259.77,24.09997133]
[1737750174017,0.96226317,259.89,259.82,24.09997133]
[1737750174320,0.96226317,259.88,259.83,3.8472]
[1737750174522,0.96226317,259.87,259.82,24.09997133]
[1737750174717,0.0249438,259.88,259.85,3.8469]
[1737750175016,0.0249438,259.88,259.87,24.09997133]
[1737750176023,0.0249438,259.88,259.83,0.02599423]
[1737750176519,11.53,259.84,259.48,24.09997133]
[1737750176820,24.09997133,259.74,259.48,24.09997133]
[1737750177121,24.09997133,259.69,259.5,3.8522]
[1737750177322,0.96285993,259.68,259.5,3.8522]
[1737750177624,0.96294443,259.67,259.5,3.8522]
[1737750177818,0.02427251,259.62,259.56,0.02636724]
[1737750178117,0.02427251,259.62,259.4,2.5348]
[1737750178324,3.851,259.59,259.4,2.5348]
[1737750178525,3.851,259.59,259.47,3.8525]
[1737750178923,3.851,259.58,259.47,3.8525]
[1737750179323,0.02636622,259.55,259.47,3.8525]
[1737750181128,3.87786622,259.55,259.4,2.5348]
[1737750181727,0.02636622,259.55,259.4,2.5348]
[1737750182429,0.02636622,259.55,259.35,24.09997133]
[1737750182631,24.09997133,259.59,259.36,2.6103]
[1737750182826,0.02840124,259.48,259.36,2.6103]
[1737750183022,0.02840124,259.48,259.47,3.8525]
[1737750183223,24.09997133,259.64,259.36,2.6103]
[1737750183525,3.8507,259.6,259.51,3.852]
[1737750183722,24.09997133,259.64,259.41,24.09997133]
[1737750183930,0.96303174,259.63,259.41,24.09997133]
[1737750184237,0.96303174,259.62,259.41,24.09997133]
[1737750184435,0.02658435,259.55,259.49,0.02912441]
[1737750185435,0.02658435,259.55,259.5,3.8521]
[1737750185936,0.02658435,259.55,259.49,3.88132441]
[1737750186236,0.02658435,259.55,259.49,0.02912441]
[1737750186430,3.8516,259.54,259.49,0.02912441]
[1737750186829,0.02658435,259.55,259.49,0.02912441]
[1737750187433,0.96307092,259.54,259.49,0.02912441]
[1737750187632,0.02658435,259.55,259.49,0.02912441]
[1737750188139,0.02658435,259.55,259.52,3.8518]
[1737750188636,0.02658435,259.55,259.49,0.02912441]
[1737750188837,0.02658435,259.55,259.53,3.8517]
[1737750189335,0.02658435,259.55,259.49,0.02912441]
[1737750189637,24.09997133,259.65,259.49,0.02912441]
[1737750189838,0.96288374,259.64,259.41,24.09997133]
[1737750190143,24.09997133,259.6,259.36,26.71027133]
[1737750190436,0.96288374,259.59,259.36,26.71027133]
[1737750190638,0.96288374,259.58,259.36,26.71027133]
[1737750190838,0.02866946,259.5,259.45,0.02891547]
[1737750193038,0.02866946,259.5,259.48,3.8525]
[1737750194440,0.02866946,259.5,259.45,0.02891547]
[1737750194746,0.02866946,259.5,259.49,3.8523]
[1737750194937,0.02866946,259.5,259.45,0.02891547]
[1737750195137,1.2597,259.72,259.47,24.09997133]
[1737750195442,0.96295607,259.71,259.52,24.09997133]
[1737750195641,0.96295607,259.7,259.64,3.85]
[1737750195837,0.96295607,259.7,259.57,24.09997133]
[1737750195838,0.96295607,259.69,259.57,24.09997133]
[1737750196043,0.96295607,259.68,259.62,24.09997133]
[1737750196237,5.23018722,259.75,259.62,24.09997133]
[1737750196439,0.02464177,259.71,259.62,24.09997133]
[1737750196641,0.9624806,259.7,259.66,0.02866556]
[1737750196943,0.9624806,259.69,259.66,0.02866556]
[1737750197144,0.9624806,259.68,259.66,0.02866556]
[1737750197344,0.02464177,259.71,259.66,0.02866556]
[1737750197549,0.96246398,259.7,259.67,24.09997133]
[1737750197743,0.96246398,259.69,259.68,3.8495]
[1737750197949,0.02464177,259.71,259.67,24.09997133]
[1737750198243,0.02464177,259.71,259.7,3.8492]
[1737750198547,0.98698568,259.71,259.7,3.8492]
[1737750198939,0.76973405,259.83,259.67,24.09997133]
[1737750199140,24.09997133,259.89,259.61,24.09997133]
[1737750199542,3.8473,259.83,259.72,3.8488]
[1737750199843,1.2682,259.9,259.61,24.09997133]
[1737750200041,0.02594046,259.8,259.75,0.02861387]
[1737750200240,0.02594046,259.8,259.48,1.2832]
[1737750200241,0.76985257,259.79,259.48,1.2832]
[1737750200440,24.09997133,259.71,259.48,1.2832]
[1737750200648,24.09997133,259.66,259.48,1.2832]
[1737750200848,1.3112,259.7,259.48,1.2832]
[1737750201248,3.8502,259.64,259.53,3.8516]
[1737750201450,0.02741793,259.62,259.56,0.02530549]
[1737750201752,3.87791793,259.62,259.56,0.02530549]
[1737750201949,0.02741793,259.62,259.56,0.02530549]
[1737750202451,3.8512,259.57,259.49,3.8523]
[1737750202650,24.09997133,259.63,259.48,2.6105]
[1737750203549,0.02472617,259.58,259.53,0.02754626]
[1737750204956,0.02472617,259.58,259.56,3.8512]
[1737750205156,1.3112,259.7,259.53,0.02754626]
[1737750205349,1.3112,259.7,259.51,24.09997133]
[1737750205652,24.09997133,259.76,259.51,24.09997133]
[1737750206154,0.02930783,259.66,259.61,0.02912893]
[1737750206553,0.02930783,259.66,259.64,3.85]
[1737750207056,1.2367,259.78,259.61,24.12910026]
[1737750207249,3.8483,259.76,259.69,3.8493]
[1737750207953,3.8488,259.73,259.7,0.02812646]
[1737750208149,0.02831669,259.75,259.7,0.02812646]
[1737750208353,0.02831669,259.75,259.51,25.41487133]
[1737750208551,24.09997133,259.76,259.51,25.41487133]
[1737750209254,3.8497,259.67,259.58,3.8509]
[1737750209449,0.02887376,259.66,259.61,0.02468046]
[1737750210454,0.02887376,259.66,259.64,3.8501]
[1737750210757,1.2367,259.78,259.61,24.12465179]
[1737750210954,0.96255321,259.77,259.61,24.09997133]
[1737750211254,1.2367,259.78,259.61,24.09997133]
[1737750211255,0.96255321,259.76,259.61,24.09997133]
[1737750211454,0.96242172,259.75,259.61,24.09997133]
[1737750211656,0.96242172,259.74,259.66,24.09997133]
[1737750211849,0.02848281,259.71,259.67,2.5542]
[1737750212047,25.37957133,259.87,259.67,2.5542]
[1737750212247,0.96233449,259.86,259.61,24.09997133]
[1737750212448,24.09997133,259.76,259.49,2.5542]
[1737750212652,3.8492,259.71,259.63,3.8502]
[1737750212848,0.96233449,259.7,259.49,2.5542]
[1737750213054,0.96233449,259.69,259.57,0.02655229]
[1737750213252,3.8498,259.66,259.52,3.8517]
[1737750213457,0.02933624,259.66,259.6,0.0289262]
[1737750213658,24.09997133,259.76,259.6,0.0289262]
[1737750213859,0.02623104,259.66,259.49,2.5542]
[1737750214048,24.09997133,259.76,259.65,0.02839676]
[1737750214248,0.02831434,259.6,259.53,24.09997133]
[1737750214557,1.2796,259.74,259.54,0.02503223]
[1737750214754,0.96270899,259.73,259.58,24.09997133]
[1737750215061,3.8493,259.7,259.62,3.8503]
[1737750215250,0.96270899,259.69,259.58,15.05366078]
[1737750215449,0.96270899,259.68,259.58,15.05366078]
[1737750215651,1.3298,259.8,259.58,15.05366078]
[1737750215854,0.02547393,259.66,259.6,0.02442331]
[1737750216154,0.02862588,259.66,259.6,0.02687693]
[1737750216460,1.3298,259.8,259.63,24.09997133]
[1737750216757,0.96251655,259.79,259.64,1.2415]
[1737750216956,0.96251655,259.78,259.64,1.2415]
[1737750217158,0.96251655,259.77,259.64,1.2415]
[1737750217361,0.96251655,259.76,259.64,1.2415]
[1737750217658,0.02787636,259.73,259.68,0.02947131]
[1737750217959,0.02787636,259.73,259.69,3.8493]
[1737750218156,0.02787636,259.73,259.68,0.02947131]
[1737750218556,0.02787636,259.73,259.69,3.8493]
[1737750218758,0.02787636,259.73,259.68,0.02947131]
[1737750219460,0.02787636,259.73,259.71,3.849]
[1737750219659,29.33015855,259.92,259.68,24.12944264]
[1737750219959,2.29232167,259.91,259.77,3.8481]
[1737750220261,0.96222167,259.9,259.77,3.8481]
[1737750220460,3.8467,259.87,259.73,24.09997133]
[1737750220658,0.96222167,259.86,259.79,3.8478]
[1737750220860,0.02535501,259.83,259.79,3.8478]
[1737750221062,0.02535501,259.83,259.8,0.0282423]
[1737750221762,0.02535501,259.83,259.8,3.8758423]
[1737750222759,0.02535501,259.83,259.8,0.0282423]
[1737750223353,4.80955439,259.82,259.8,0.0282423]
[1737750223658,0.02535501,259.83,259.8,0.0282423]
[1737750223854,0.9621578,259.82,259.8,0.0282423]
[1737750224162,0.9621578,259.81,259.8,0.0282423]
[1737750224458,0.02535501,259.83,259.8,0.0282423]
[1737750224861,3.8475,259.82,259.8,0.0282423]
[1737750225257,0.02535501,259.83,259.8,0.0282423]
[1737750226056,3.8475,259.82,259.8,0.0282423]
[1737750226259,0.96222576,259.81,259.65,1.3247]
[1737750226466,4.81021533,259.8,259.74,3.8486]
[1737750226765,0.96229828,259.79,259.66,1.2411]
[1737750226956,24.09997133,259.85,259.66,1.2411]
[1737750227157,0.96232025,259.84,259.73,3.8487]
[1737750227357,24.09997133,259.85,259.73,3.8487]
[1737750227358,0.96232025,259.83,259.73,3.8487]
[1737750227662,3.87309491,259.81,259.76,0.02573155]
[1737750228362,0.02539491,259.81,259.76,0.02573155]
[1737750229464,0.96228011,259.8,259.76,0.02573155]
[1737750229670,0.96228011,259.79,259.76,0.02573155]
[1737750229969,4.81031415,259.78,259.76,0.02573155]
[1737750230166,3.848,259.78,259.76,0.02573155]
[1737750230569,3.8482,259.77,259.76,0.02573155]
[1737750231263,0.02539491,259.81,259.76,0.02573155]
[1737750231465,0.9623073,259.8,259.76,0.02573155]
[1737750231670,0.02539491,259.81,259.76,0.02573155]
[1737750232072,0.02539491,259.81,259.8,3.8477]
[1737750233368,3.8463,259.9,259.76,0.02573155]
[1737750233568,0.9619744,259.89,259.72,24.09997133]
[1737750233767,0.9619744,259.88,259.72,24.09997133]
[1737750233969,3.8464,259.9,259.72,24.09997133]
[1737750234169,0.9619747,259.89,259.72,24.09997133]
[1737750234370,0.02523575,259.84,259.83,3.8472]
[1737750234570,1.2446,259.94,259.83,3.8472]
[1737750234770,0.02472315,259.86,259.81,3.87367245]
[1737750235168,0.02472315,259.86,259.81,0.02627245]
[1737750235375,0.96204377,259.85,259.81,0.02627245]
[1737750235675,0.96204377,259.84,259.81,0.02627245]
[1737750235966,0.02472315,259.86,259.81,0.02627245]
[1737750236174,0.96208632,259.85,259.72,24.09997133]
[1737750236363,0.96208632,259.84,259.72,24.09997133]
[1737750236564,3.847,259.85,259.72,24.09997133]
[1737750236770,0.9620973,259.84,259.72,24.09997133]
[1737750236970,24.09997133,259.9,259.66,1.2411]
[1737750237169,0.0270097,259.81,259.75,0.0280993]
[1737750237369,0.96221082,259.8,259.75,0.0280993]
[1737750237666,0.0270097,259.81,259.75,0.0280993]
[1737750238974,3.8478,259.8,259.75,0.0280993]
[1737750240175,0.0270097,259.81,259.75,0.0280993]
[1737750240376,0.96219986,259.8,259.75,0.0280993]
[1737750240576,3.8746097,259.81,259.75,3.8764993]
[1737750241776,0.0270097,259.81,259.75,0.0280993]
[1737750241980,0.0270097,259.81,259.76,3.8483]
[1737750242478,0.0270097,259.81,259.75,0.0280993]
[1737750242678,0.0270097,259.81,259.77,3.8481]
[1737750243172,0.0270097,259.81,259.75,0.0280993]
[1737750243773,0.0270097,259.81,259.77,3.848]
[1737750243970,0.0270097,259.81,259.75,0.0280993]
[1737750244881,0.0270097,259.81,259.77,3.8481]
[1737750245070,3.8746097,259.81,259.75,0.0280993]
[1737750245275,0.0270097,259.81,259.75,0.0280993]
[1737750245475,0.0270097,259.81,259.76,3.8483]
[1737750245969,0.0270097,259.81,259.79,3.8478]
[1737750246181,0.0270097,259.81,259.75,0.0280993]
[1737750246979,0.0270097,259.81,259.76,3.8482]
[1737750247182,0.0270097,259.81,259.75,0.0280993]
[1737750247479,0.0270097,259.81,259.79,3.8478]
[1737750247678,0.0270097,259.81,259.75,0.0280993]
[1737750250083,0.0270097,259.81,259.79,3.8479]
[1737750250274,0.0270097,259.81,259.75,0.0280993]
[1737750250479,0.96212912,259.8,259.75,0.0280993]
[1737750250680,0.96212912,259.79,259.75,0.0280993]
[1737750250877,27.27241554,259.78,259.48,14.79028642]
[1737750251075,14.79028642,259.7,259.49,3.8523]
[1737750251385,14.79028642,259.7,259.48,14.79028642]
[1737750251386,0.96212912,259.69,259.48,14.79028642]
[1737750251583,0.96293828,259.68,259.48,14.79028642]
[1737750251881,1.2739,259.77,259.44,27.85190047]
[1737750251882,3.8511,259.58,259.44,27.85190047]
[1737750252188,0.96293828,259.57,259.44,26.61770047]
[1737750252487,24.08110047,259.67,259.48,0.02709882]
[1737750252488,3.87718857,259.54,259.48,0.02709882]
[1737750252689,0.96293828,259.53,259.45,5.087]
[1737750252987,0.96293828,259.53,259.48,0.02849469]
[1737750253390,3.87666109,259.54,259.48,0.02849469]
[1737750253592,0.02496109,259.54,259.48,0.02849469]
[1737750256484,0.02496109,259.54,259.38,24.08110047]